[Event "WSCC  M65 2019"]
[Site "Bucharest"]
[Date "2019.11.12"]
[Round "1.50"]
[White "Povah, Nigel E"]
[Black "Myall, Ivan J"]
[Result "1-0"]
[ECO "A45"]
[WhiteElo "2314"]
[BlackElo "1971"]
[Annotator "NA"]
[PlyCount "77"]
[EventDate "2019.11.12"]
[EventType "swiss"]
[EventCountry "ROU"]
[SourceTitle "playchess.com"]
[Source "ChessBase"]
[SourceQuality "1"]
[TimeControl "40/5400+30:1800+30"]

1. d4 {[%emt 0:00:00]} Nf6 {[%emt 0:00:00]} 2. Bf4 {[%emt 0:00:00]} c5 {[%emt 0:00:00]} 3. d5 {[%emt 0:00:31]} b5 {[%emt 0:00:08]} 4. c4 {[%emt 0:01:58]} b4 {[%emt 0:04:42]} 5. Nd2 {[%emt 0:12:38]} d6 {[%emt 0:01:44]} 6. e4 {[%emt 0:00:36]} g6 {[%emt 0:03:40]} 7. Be2 {[%emt 0:01:14]} Bg7 {[%emt 0:01:36]} 8. h3 {[%emt 0:02:22]} Nbd7 {[%emt 0:10:16]} 9. Qc2 {[%emt 0:06:52]} Qb6 {[%emt 0:02:26]} 10. Bh2 {[%emt 0:06:32]} O-O {[%emt 0:12:19]} 11. f4 {[%emt 0:05:52]} Ne8 {[%emt 0:04:14]} 12. Ngf3 {[%emt 0:06:07]} e6 {[%emt 0:09:49]} 13. O-O {[%emt 0:05:59]} exd5 {[%emt 0:00:27]} 14. exd5 {[%emt 0:02:11]} Ndf6 {[%emt 0:02:08]} 15. Rae1 {[%emt 0:07:40]} Nc7 {[%emt 0:02:33]} 16. Kh1 {[%emt 0:07:06]} a5 {[%emt 0:04:04]} 17. Bd3 {[%emt 0:01:01]} a4 {[%emt 0:00:08]} 18. f5 Bd7 19. fxg6 {[%emt 0:05:02]} hxg6 {[%emt 0:17:35]} 20. Ng5 {[%emt 0:04:36]} b3 {[%emt 0:05:17]} 21. axb3 {[%emt 0:00:42]} axb3 {[%emt 0:00:05]} 22. Qb1 {[%emt 0:05:54]} Rae8 {[%emt 0:03:42]} 23. Nde4 {[%emt 0:01:46]} Nxe4 {[%emt 0:04:35]} 24. Nxe4 {[%emt 0:01:44]} f5 {[%emt 0:01:42]} 25. Nxd6 {[%emt 0:02:20]} Rxe1 {[%emt 0:00:20]} 26. Qxe1 {[%emt 0:00:16]} Ba4 {[%emt 0:04:38]} 27. g4 {[%emt 0:05:15]} f4 {[%emt 0:01:34]} 28. Qe7 {[%emt 0:03:08]} Bf6 {[%emt 0:00:13]} 29. Qe4 {[%emt 0:00:16]} Bg7 {[%emt 0:01:45]} 30. Qxg6 {[%emt 0:00:24]} Rf6 {[%emt 0:00:02]} 31. Qh7+ {[%emt 0:00:36]} Kf8 {[%emt 0:00:01]} 32. Nf5 {[%emt 0:01:19]} Ne8 {[%emt 0:00:10]} 33. Bxf4 {[%emt 0:01:13]} Bd7 {[%emt 0:02:11]} 34. Be5 {[%emt 0:01:59]} Bxf5 {[%emt 0:00:40]} 35. Rxf5 {[%emt 0:00:40]} Rxf5 {[%emt 0:00:34]} 36. Qxf5+ {[%emt 0:00:09]} Kg8 {[%emt 0:00:54]} 37. d6 {[%emt 0:00:37]} Qb7+ {[%emt 0:00:19]} 38. Be4 {[%emt 0:00:08]} Qa7 {[%emt 0:00:35]} 39. Bd5+ {[%emt 0:00:08]} 1-0

[Event "WSCC  M65 2019"]
[Site "Bucharest"]
[Date "2019.11.12"]
[Round "1.51"]
[White "Coll Sola, Joan"]
[Black "Maryasin, Boris"]
[Result "1-0"]
[ECO "A35"]
[WhiteElo "1965"]
[BlackElo "2301"]
[Annotator "NA"]
[PlyCount "179"]
[EventDate "2019.11.12"]
[EventType "swiss"]
[EventCountry "ROU"]
[SourceTitle "playchess.com"]
[Source "ChessBase"]
[SourceQuality "1"]
[TimeControl "40/5400+30:1800+30"]

1. c4 {[%emt 0:00:00]} c5 {[%emt 0:00:00]} 2. Nc3 {[%emt 0:00:00]} Nc6 {[%emt 0:00:19]} 3. e4 {[%emt 0:00:00]} g6 {[%emt 0:00:35]} 4. g3 {[%emt 0:00:18]} Bg7 {[%emt 0:00:08]} 5. Bg2 {[%emt 0:00:02]} Nf6 {[%emt 0:02:33]} 6. Nge2 {[%emt 0:00:43]} O-O {[%emt 0:00:12]} 7. O-O {[%emt 0:00:06]} Ne8 {[%emt 0:00:53]} 8. d3 {[%emt 0:00:41]} d6 {[%emt 0:00:32]} 9. a3 {[%emt 0:00:51]} Nc7 {[%emt 0:01:20]} 10. Rb1 {[%emt 0:00:13]} a5 {[%emt 0:00:11]} 11. Be3 {[%emt 0:01:58]} e5 {[%emt 0:02:22]} 12. f4 {[%emt 0:01:13]} Nd4 {[%emt 0:02:56]} 13. b4 {[%emt 0:04:51]} axb4 {[%emt 0:01:50]} 14. axb4 {[%emt 0:00:27]} exf4 {[%emt 0:03:05]} 15. Bxf4 {[%emt 0:00:38]} Nce6 {[%emt 0:01:57]} 16. Be3 {[%emt 0:01:15]} h5 {[%emt 0:05:03]} 17. bxc5 {[%emt 0:05:54]} dxc5 {[%emt 0:00:26]} 18. Nd5 {[%emt 0:02:13]} h4 {[%emt 0:03:16]} 19. g4 {[%emt 0:01:25]} h3 {[%emt 0:02:57]} 20. Bxh3 {[%emt 0:05:55]} Qh4 {[%emt 0:00:27]} 21. Bg2 {[%emt 0:01:38]} Be5 {[%emt 0:05:06]} 22. Nxd4 Nxd4 23. Bf4 {[%emt 0:09:18]} Bxg4 {[%emt 0:02:50]} 24. Qe1 {[%emt 0:10:15]} Ne2+ {[%emt 0:02:24]} 25. Kh1 {[%emt 0:00:26]} Qxe1 {[%emt 0:01:03]} 26. Rbxe1 {[%emt 0:00:50]} Nxf4 {[%emt 0:01:17]} 27. Nxf4 {[%emt 0:03:12]} Ra3 {[%emt 0:09:04]} 28. Rb1 {[%emt 0:06:20]} Bxf4 {[%emt 0:00:34]} 29. Rxf4 {[%emt 0:00:02]} Be2 {[%emt 0:00:19]} 30. Bf1 {[%emt 0:02:19]} Bxd3 {[%emt 0:01:12]} 31. Bxd3 {[%emt 0:00:43]} Rxd3 {[%emt 0:00:05]} 32. Rxb7 {[%emt 0:00:08]} Rd4 {[%emt 0:00:17]} 33. Kg2 {[%emt 0:06:41]} Rxc4 {[%emt 0:01:48]} 34. Kf3 {[%emt 0:05:06]} Rc1 {[%emt 0:00:51]} 35. Rc7 {[%emt 0:02:06]} c4 {[%emt 0:01:04]} 36. e5 {[%emt 0:03:06]} c3 {[%emt 0:00:44]} 37. Rfc4 {[%emt 0:02:18]} Re8 {[%emt 0:01:06]} 38. R7c5 {[%emt 0:03:07]} c2 {[%emt 0:02:02]} 39. Kf4 {[%emt 0:04:10]} Rf1+ {[%emt 0:00:42]} 40. Ke4 {[%emt 0:00:00]} Re1+ {[%emt 0:00:00]} 41. Kf4 {[%emt 0:00:31]} R8xe5 {[%emt 0:05:08]} 42. Rxc2 {[%emt 0:03:43]} Rxc5 {[%emt 0:01:36]} 43. Rxc5 {[%emt 0:00:04]} Kg7 {[%emt 0:00:15]} 44. Rc7 {[%emt 0:00:51]} Rf1+ {[%emt 0:00:31]} 45. Kg3 {[%emt 0:00:12]} Kh6 {[%emt 0:00:09]} 46. Rc8 {[%emt 0:02:31]} Rg1+ {[%emt 0:01:58]} 47. Kf2 {[%emt 0:00:16]} Ra1 {[%emt 0:00:14]} 48. Kg3 {[%emt 0:00:16]} Ra3+ {[%emt 0:00:17]} 49. Kg2 {[%emt 0:00:15]} Kg5 {[%emt 0:00:16]} 50. Rc5+ {[%emt 0:03:22]} f5 {[%emt 0:00:12]} 51. Rb5 {[%emt 0:01:00]} Kg4 {[%emt 0:00:50]} 52. Rb2 {[%emt 0:12:20]} f4 {[%emt 0:00:31]} 53. Rc2 {[%emt 0:03:52]} g5 {[%emt 0:00:17]} 54. Rb2 {[%emt 0:01:36]} Re3 {[%emt 0:03:23]} 55. Ra2 {[%emt 0:01:17]} Re5 {[%emt 0:01:34]} 56. Rb2 {[%emt 0:02:01]} Kh4 {[%emt 0:00:34]} 57. Ra2 {[%emt 0:05:04]} g4 {[%emt 0:00:16]} 58. Ra8 {[%emt 0:01:16]} Re2+ {[%emt 0:01:30]} 59. Kg1 {[%emt 0:00:14]} Rd2 {[%emt 0:02:02]} 60. Rh8+ {[%emt 0:02:42]} Kg5 {[%emt 0:00:07]} 61. Rg8+ Kf5 {[%emt 0:00:06]} 62. Rg7 {[%emt 0:01:01]} Ke4 {[%emt 0:04:05]} 63. Re7+ {[%emt 0:00:25]} Kf3 {[%emt 0:00:18]} 64. Re1 {[%emt 0:00:11]} Rg2+ {[%emt 0:00:59]} 65. Kh1 {[%emt 0:00:26]} Re2 {[%emt 0:00:11]} 66. Rf1+ {[%emt 0:05:36]} Ke3 {[%emt 0:00:07]} 67. Kg1 {[%emt 0:01:12]} f3 {[%emt 0:00:10]} 68. Ra1 {[%emt 0:00:37]} Rg2+ {[%emt 0:00:12]} 69. Kh1 {[%emt 0:00:13]} Rd2 {[%emt 0:00:19]} 70. Kg1 {[%emt 0:00:25]} Rd4 {[%emt 0:06:29]} 71. Rb1 {[%emt 0:01:42]} Kf4 {[%emt 0:00:20]} 72. Rb8 {[%emt 0:02:05]} Rd1+ {[%emt 0:02:54]} 73. Kf2 {[%emt 0:00:19]} Rd2+ {[%emt 0:02:48]} 74. Kg1 {[%emt 0:00:04]} Rg2+ {[%emt 0:00:55]} 75. Kh1 {[%emt 0:00:10]} Re2 {[%emt 0:01:46]} 76. Kg1 {[%emt 0:00:56]} Re1+ {[%emt 0:00:39]} 77. Kf2 {[%emt 0:00:16]} Rh1 {[%emt 0:00:06]} 78. Rf8+ {[%emt 0:00:50]} Ke5 {[%emt 0:00:02]} 79. Re8+ {[%emt 0:02:45]} Kf6 {[%emt 0:00:02]} 80. Rh8 {[%emt 0:02:47]} Rb1 {[%emt 0:00:11]} 81. Rh5 {[%emt 0:01:37]} Rb2+ {[%emt 0:00:10]} 82. Kg1 {[%emt 0:00:03]} Re2 {[%emt 0:00:30]} 83. Kf1 {[%emt 0:00:43]} Re5 {[%emt 0:01:45]} 84. Rh8 {[%emt 0:00:31]} Kg5 {[%emt 0:00:28]} 85. Rh7 {[%emt 0:01:55]} Kf4 {[%emt 0:00:19]} 86. Rh4 {[%emt 0:00:39]} Rb5 {[%emt 0:00:23]} 87. h3 {[%emt 0:00:18]} Ke3 {[%emt 0:00:08]} 88. Kg1 {[%emt 0:00:38]} Rb1+ {[%emt 0:00:08]} 89. Kh2 {[%emt 0:00:03]} f2 90. Kg2 1-0

[Event "WSCC  M65 2019"]
[Site "Bucharest"]
[Date "2019.11.12"]
[Round "1.52"]
[White "Shevelev, Arkady"]
[Black "Green, Per"]
[Result "1-0"]
[ECO "B47"]
[WhiteElo "2282"]
[BlackElo "1958"]
[Annotator "NA"]
[PlyCount "93"]
[EventDate "2019.11.12"]
[EventType "swiss"]
[EventCountry "ROU"]
[SourceTitle "playchess.com"]
[Source "ChessBase"]
[SourceQuality "1"]
[TimeControl "40/5400+30:1800+30"]

1. e4 {[%emt 0:00:00]} c5 {[%emt 0:00:00]} 2. Nf3 {[%emt 0:00:00]} e6 {[%emt 0:00:18]} 3. d4 {[%emt 0:00:03]} cxd4 {[%emt 0:00:10]} 4. Nxd4 {[%emt 0:00:13]} Nc6 {[%emt 0:00:26]} 5. Nc3 {[%emt 0:00:17]} Qc7 {[%emt 0:00:25]} 6. g3 {[%emt 0:00:30]} a6 {[%emt 0:00:34]} 7. Bg2 {[%emt 0:00:18]} Nf6 {[%emt 0:00:32]} 8. O-O {[%emt 0:00:18]} Nxd4 {[%emt 0:00:53]} 9. Qxd4 {[%emt 0:00:16]} Bc5 {[%emt 0:00:29]} 10. Bf4 {[%emt 0:00:46]} d6 {[%emt 0:00:53]} 11. Qd2 {[%emt 0:00:32]} h6 {[%emt 0:00:34]} 12. Rad1 {[%emt 0:01:07]} e5 {[%emt 0:00:25]} 13. Be3 {[%emt 0:00:22]} Bb4 {[%emt 0:04:48]} 14. Nb5 {[%emt 0:02:55]} axb5 {[%emt 0:01:21]} 15. Qxb4 {[%emt 0:00:09]} O-O {[%emt 0:00:31]} 16. Rxd6 {[%emt 0:05:25]} Be6 {[%emt 0:06:24]} 17. Rfd1 {[%emt 0:11:50]} Rxa2 {[%emt 0:03:32]} 18. R6d2 {[%emt 0:05:53]} Qc4 {[%emt 0:09:47]} 19. Qxc4 {[%emt 0:00:21]} bxc4 {[%emt 0:02:08]} 20. c3 {[%emt 0:00:21]} Rfa8 {[%emt 0:04:25]} 21. h3 {[%emt 0:00:26]} Ra1 {[%emt 0:01:31]} 22. f4 {[%emt 0:00:35]} Bxh3 {[%emt 0:17:33]} 23. Bxh3 {[%emt 0:01:53]} Nxe4 {[%emt 0:00:37]} 24. Rd8+ {[%emt 0:00:13]} Rxd8 {[%emt 0:00:06]} 25. Rxa1 {[%emt 0:00:14]} Nxg3 {[%emt 0:00:14]} 26. fxe5 {[%emt 0:01:24]} Rd3 {[%emt 0:02:24]} 27. Kf2 {[%emt 0:00:34]} Ne4+ {[%emt 0:03:52]} 28. Ke2 {[%emt 0:00:09]} g6 {[%emt 0:05:28]} 29. e6 {[%emt 0:00:51]} Ng3+ {[%emt 0:05:03]} 30. Kf3 {[%emt 0:00:21]} Kf8 {[%emt 0:02:45]} 31. Ra7 {[%emt 0:01:44]} fxe6 {[%emt 0:01:28]} 32. Rxb7 {[%emt 0:00:16]} Nf5 {[%emt 0:02:28]} 33. Bxf5 {[%emt 0:00:07]} exf5 {[%emt 0:00:47]} 34. Ke2 {[%emt 0:00:40]} g5 {[%emt 0:00:24]} 35. Rh7 {[%emt 0:08:13]} f4 {[%emt 0:01:03]} 36. Bc5+ {[%emt 0:00:06]} Kg8 {[%emt 0:01:57]} 37. Rxh6 {[%emt 0:00:08]} Kg7 {[%emt 0:00:48]} 38. Rc6 {[%emt 0:00:54]} f3+ {[%emt 0:03:17]} 39. Kf2 {[%emt 0:00:15]} g4 {[%emt 0:01:01]} 40. Bd4+ {[%emt 0:00:00]} Kh7 {[%emt 0:00:00]} 41. Kg3 {[%emt 0:01:20]} Rd2 {[%emt 0:11:35]} 42. Kxg4 {[%emt 0:00:10]} f2 {[%emt 0:00:11]} 43. Rf6 {[%emt 0:00:07]} Rxb2 {[%emt 0:00:22]} 44. Rxf2 {[%emt 0:00:09]} Rb7 {[%emt 0:02:25]} 45. Kf5 {[%emt 0:00:09]} Rb5+ {[%emt 0:02:19]} 46. Ke6 {[%emt 0:00:53]} Rh5 {[%emt 0:00:20]} 47. Rf7+ 1-0

[Event "WSCC  M65 2019"]
[Site "Bucharest"]
[Date "2019.11.12"]
[Round "1.53"]
[White "Khazankin, Moisei"]
[Black "Caturla, Cesar"]
[Result "1/2-1/2"]
[ECO "B34"]
[WhiteElo "1954"]
[BlackElo "2276"]
[Annotator "NA"]
[PlyCount "100"]
[EventDate "2019.11.12"]
[EventType "swiss"]
[EventCountry "ROU"]
[SourceTitle "playchess.com"]
[Source "ChessBase"]
[SourceQuality "1"]
[TimeControl "40/5400+30:1800+30"]

1. e4 {[%emt 0:00:00]} c5 {[%emt 0:00:00]} 2. Nf3 {[%emt 0:00:00]} Nc6 {[%emt 0:00:00]} 3. d4 {[%emt 0:00:00]} cxd4 {[%emt 0:00:00]} 4. Nxd4 {[%emt 0:00:00]} g6 {[%emt 0:00:13]} 5. Nc3 {[%emt 0:00:43]} Bg7 {[%emt 0:00:16]} 6. Be3 {[%emt 0:00:27]} Nf6 {[%emt 0:00:15]} 7. f3 {[%emt 0:00:14]} O-O {[%emt 0:00:17]} 8. Qd2 {[%emt 0:00:16]} d5 {[%emt 0:00:39]} 9. exd5 {[%emt 0:00:39]} Nb4 {[%emt 0:09:13]} 10. Bc4 {[%emt 0:04:23]} Nbxd5 {[%emt 0:03:57]} 11. Nxd5 {[%emt 0:03:29]} Nxd5 {[%emt 0:00:52]} 12. Bxd5 {[%emt 0:00:25]} Qxd5 {[%emt 0:00:12]} 13. O-O {[%emt 0:00:32]} e5 {[%emt 0:03:44]} 14. Nb3 {[%emt 0:03:16]} Qc6 {[%emt 0:01:55]} 15. c3 {[%emt 0:02:02]} Be6 {[%emt 0:00:50]} 16. Rfd1 {[%emt 0:02:20]} b6 {[%emt 0:02:55]} 17. Qd6 {[%emt 0:21:17]} Qb5 {[%emt 0:08:13]} 18. Rd2 {[%emt 0:03:30]} Rfe8 {[%emt 0:02:39]} 19. Nc1 {[%emt 0:06:19]} Bf8 {[%emt 0:02:50]} 20. a4 {[%emt 0:01:31]} Qa5 {[%emt 0:17:39]} 21. b4 {[%emt 0:06:32]} Qa6 {[%emt 0:00:16]} 22. Qd3 {[%emt 0:04:12]} Qc8 {[%emt 0:05:45]} 23. Ne2 {[%emt 0:06:15]} Bc4 {[%emt 0:02:59]} 24. Qc2 {[%emt 0:00:42]} Qe6 {[%emt 0:00:23]} 25. a5 {[%emt 0:01:38]} b5 {[%emt 0:02:40]} 26. Re1 {[%emt 0:03:12]} a6 {[%emt 0:02:40]} 27. Qb2 {[%emt 0:01:38]} Rac8 {[%emt 0:01:43]} 28. Ng3 {[%emt 0:13:49]} f5 {[%emt 0:00:22]} 29. Nh1 {[%emt 0:02:24]} Qc6 {[%emt 0:01:27]} 30. Nf2 {[%emt 0:02:03]} Bf7 {[%emt 0:03:10]} 31. Rc1 {[%emt 0:01:46]} Red8 {[%emt 0:02:14]} 32. Rxd8 {[%emt 0:00:36]} Rxd8 {[%emt 0:00:05]} 33. Rd1 {[%emt 0:04:21]} Rd5 {[%emt 0:02:41]} 34. Rxd5 {[%emt 0:00:20]} Bxd5 {[%emt 0:03:08]} 35. Nd3 {[%emt 0:02:31]} e4 {[%emt 0:00:49]} 36. fxe4 {[%emt 0:00:15]} Bxe4 {[%emt 0:00:22]} 37. Nc5 {[%emt 0:00:07]} Bd5 {[%emt 0:06:46]} 38. Qd2 {[%emt 0:00:15]} Bxc5 {[%emt 0:08:18]} 39. Bxc5 {[%emt 0:00:22]} Qe6 {[%emt 0:00:09]} 40. Qe3 {[%emt 0:00:00]} Kf7 {[%emt 0:00:00]} 41. g3 {[%emt 0:05:29]} h5 {[%emt 0:04:06]} 42. Kf2 {[%emt 0:01:02]} Bc4 {[%emt 0:03:16]} 43. h4 {[%emt 0:04:29]} Qe4 {[%emt 0:04:23]} 44. Qxe4 {[%emt 0:03:24]} fxe4 {[%emt 0:00:09]} 45. Ke3 {[%emt 0:00:24]} Bd3 {[%emt 0:00:25]} 46. c4 {[%emt 0:03:04]} Ke6 {[%emt 0:05:35]} 47. cxb5 {[%emt 0:00:10]} Bxb5 {[%emt 0:00:11]} 48. Kxe4 {[%emt 0:00:05]} Bc6+ {[%emt 0:01:09]} 49. Kf4 {[%emt 0:00:05]} Bb5 {[%emt 0:00:13]} 50. Kg5 {[%emt 0:00:50]} Kf7 {[%emt 0:00:38]} 1/2-1/2

[Event "WSCC  M65 2019"]
[Site "Bucharest"]
[Date "2019.11.12"]
[Round "1.54"]
[White "Rooze, Jan"]
[Black "Taksrud, Vidar"]
[Result "1-0"]
[ECO "B01"]
[WhiteElo "2272"]
[BlackElo "1954"]
[Annotator "NA"]
[PlyCount "69"]
[EventDate "2019.11.12"]
[EventType "swiss"]
[EventCountry "ROU"]
[SourceTitle "playchess.com"]
[Source "ChessBase"]
[SourceQuality "1"]
[TimeControl "40/5400+30:1800+30"]

1. e4 {[%emt 0:00:00]} d5 {[%emt 0:00:00]} 2. exd5 {[%emt 0:00:00]} Nf6 {[%emt 0:00:04]} 3. Nf3 {[%emt 0:00:00]} Nxd5 {[%emt 0:00:10]} 4. d4 {[%emt 0:00:08]} g6 {[%emt 0:01:02]} 5. c4 {[%emt 0:00:28]} Nb6 {[%emt 0:00:10]} 6. Nc3 {[%emt 0:00:13]} Bg7 {[%emt 0:00:26]} 7. c5 {[%emt 0:00:19]} Nd5 {[%emt 0:00:15]} 8. Bc4 {[%emt 0:00:35]} c6 {[%emt 0:00:44]} 9. Qb3 {[%emt 0:00:42]} O-O {[%emt 0:04:17]} 10. O-O {[%emt 0:10:54]} Nxc3 {[%emt 0:05:55]} 11. bxc3 {[%emt 0:00:19]} b5 {[%emt 0:04:00]} 12. Bd3 {[%emt 0:03:04]} Na6 {[%emt 0:05:49]} 13. Qb1 {[%emt 0:08:20]} Be6 {[%emt 0:03:39]} 14. a4 {[%emt 0:04:58]} Nc7 {[%emt 0:03:05]} 15. axb5 {[%emt 0:02:32]} cxb5 {[%emt 0:01:00]} 16. Bf4 {[%emt 0:04:22]} Nd5 {[%emt 0:03:17]} 17. Bd2 {[%emt 0:00:42]} a6 {[%emt 0:01:47]} 18. Re1 {[%emt 0:02:43]} Qc7 {[%emt 0:09:44]} 19. Ne5 {[%emt 0:07:26]} Bc8 {[%emt 0:07:37]} 20. h4 {[%emt 0:07:59]} Bb7 {[%emt 0:08:58]} 21. h5 {[%emt 0:02:03]} gxh5 {[%emt 0:05:51]} 22. Bxh7+ {[%emt 0:00:45]} Kh8 {[%emt 0:00:07]} 23. Bd3 {[%emt 0:04:58]} e6 {[%emt 0:04:38]} 24. Qd1 {[%emt 0:02:17]} Nf6 25. Bg5 {[%emt 0:02:07]} Ng4 {[%emt 0:10:33]} 26. Nxg4 {[%emt 0:00:56]} hxg4 {[%emt 0:00:08]} 27. Qxg4 {[%emt 0:00:30]} f5 {[%emt 0:00:45]} 28. Qh4+ {[%emt 0:02:36]} Kg8 {[%emt 0:00:19]} 29. Rxe6 {[%emt 0:00:48]} Rf7 {[%emt 0:05:17]} 30. Rae1 {[%emt 0:01:00]} Raf8 {[%emt 0:01:03]} 31. Rd6 {[%emt 0:06:31]} Qa5 {[%emt 0:01:47]} 32. Bd2 {[%emt 0:02:33]} Bf6 {[%emt 0:02:02]} 33. Rxf6 {[%emt 0:05:21]} Rxf6 {[%emt 0:00:10]} 34. Re7 {[%emt 0:00:09]} R6f7 {[%emt 0:06:20]} 35. Qg5+ {[%emt 0:00:28]} 1-0

[Event "WSCC  M65 2019"]
[Site "Bucharest"]
[Date "2019.11.12"]
[Round "1.55"]
[White "James, Kevin"]
[Black "Karason, Askell O"]
[Result "0-1"]
[ECO "E20"]
[WhiteElo "1953"]
[BlackElo "2271"]
[Annotator "NA"]
[PlyCount "50"]
[EventDate "2019.11.12"]
[EventType "swiss"]
[EventCountry "ROU"]
[SourceTitle "playchess.com"]
[Source "ChessBase"]
[SourceQuality "1"]
[TimeControl "40/5400+30:1800+30"]

1. d4 {[%emt 0:00:00]} Nf6 {[%emt 0:00:00]} 2. c4 {[%emt 0:00:00]} e6 {[%emt 0:00:00]} 3. Nc3 {[%emt 0:00:00]} Bb4 {[%emt 0:00:00]} 4. f3 {[%emt 0:00:00]} c5 {[%emt 0:00:00]} 5. d5 {[%emt 0:00:59]} O-O {[%emt 0:00:00]} 6. e4 {[%emt 0:01:03]} Re8 {[%emt 0:00:00]} 7. Nge2 {[%emt 0:01:56]} exd5 {[%emt 0:01:22]} 8. cxd5 {[%emt 0:00:26]} d6 {[%emt 0:00:03]} 9. Kf2 {[%emt 0:04:25]} a6 {[%emt 0:00:44]} 10. a4 {[%emt 0:02:07]} Nbd7 {[%emt 0:00:27]} 11. g4 {[%emt 0:05:08]} Nxg4+ {[%emt 0:15:09]} 12. Kg1 {[%emt 0:12:20]} Qh4 {[%emt 0:22:18]} 13. Ng3 {[%emt 0:00:11]} c4 {[%emt 0:02:18]} 14. Nce2 {[%emt 0:16:56]} Bc5+ {[%emt 0:01:09]} 15. Nd4 {[%emt 0:00:23]} Nde5 {[%emt 0:01:32]} 16. Kg2 {[%emt 0:03:50]} Nf6 {[%emt 0:10:41]} 17. Be3 {[%emt 0:03:58]} Bh3+ {[%emt 0:05:09]} 18. Kg1 {[%emt 0:00:24]} Nh5 {[%emt 0:06:11]} 19. Ngf5 {[%emt 0:14:18]} Bxf5 {[%emt 0:00:54]} 20. Nxf5 {[%emt 0:00:00]} Bxe3+ {[%emt 0:00:26]} 21. Nxe3 {[%emt 0:00:00]} Qf4 {[%emt 0:01:27]} 22. Kf2 {[%emt 0:00:38]} Nf6 {[%emt 0:00:22]} 23. Qd4 {[%emt 0:03:09]} Qxf3+ {[%emt 0:00:21]} 24. Kg1 {[%emt 0:01:04]} Nxe4 {[%emt 0:01:18]} 25. Nxc4 {[%emt 0:01:19]} Qg4+ {[%emt 0:00:13]} 0-1

[Event "WSCC  M65 2019"]
[Site "Bucharest"]
[Date "2019.11.12"]
[Round "1.56"]
[White "Afek, Yochanan"]
[Black "Stojkovic, Andreja"]
[Result "1-0"]
[ECO "B29"]
[WhiteElo "2257"]
[BlackElo "1951"]
[Annotator "NA"]
[PlyCount "41"]
[EventDate "2019.11.12"]
[EventType "swiss"]
[EventCountry "ROU"]
[SourceTitle "playchess.com"]
[Source "ChessBase"]
[SourceQuality "1"]
[TimeControl "40/5400+30:1800+30"]

1. e4 {[%emt 0:00:00]} c5 {[%emt 0:00:00]} 2. Nf3 {[%emt 0:00:00]} Nf6 {[%emt 0:00:00]} 3. e5 {[%emt 0:03:07]} Nd5 {[%emt 0:00:00]} 4. c3 {[%emt 0:00:48]} e6 {[%emt 0:01:28]} 5. d4 {[%emt 0:02:17]} cxd4 {[%emt 0:04:04]} 6. cxd4 {[%emt 0:01:45]} Be7 {[%emt 0:00:04]} 7. Nc3 {[%emt 0:01:07]} Nxc3 {[%emt 0:12:35]} 8. bxc3 {[%emt 0:00:05]} d5 {[%emt 0:01:59]} 9. Bd3 {[%emt 0:00:36]} O-O {[%emt 0:14:00]} 10. h4 {[%emt 0:03:39]} f5 {[%emt 0:10:15]} 11. exf6 {[%emt 0:00:50]} gxf6 {[%emt 0:04:12]} 12. Bh6 {[%emt 0:18:48]} Rf7 {[%emt 0:04:11]} 13. Rh3 {[%emt 0:03:47]} Bd6 {[%emt 0:08:11]} 14. Ne5 {[%emt 0:08:40]} Bxe5 {[%emt 0:26:05]} 15. dxe5 {[%emt 0:00:09]} Kh8 {[%emt 0:03:57]} 16. Qh5 {[%emt 0:12:52]} Qe7 {[%emt 0:01:50]} 17. Rg3 {[%emt 0:03:17]} Bd7 {[%emt 0:02:11]} 18. Bg6 {[%emt 0:03:27]} hxg6 {[%emt 0:00:31]} 19. Bg7+ {[%emt 0:00:07]} Kxg7 {[%emt 0:00:54]} 20. Rxg6+ {[%emt 0:00:21]} Kf8 {[%emt 0:00:41]} 21. Qh8# 1-0

[Event "WSCC  M65 2019"]
[Site "Bucharest"]
[Date "2019.11.12"]
[Round "1.57"]
[White "Blaushtain, Boris"]
[Black "Geller, Arpad"]
[Result "1/2-1/2"]
[ECO "D32"]
[WhiteElo "1947"]
[BlackElo "2253"]
[Annotator "NA"]
[PlyCount "84"]
[EventDate "2019.11.12"]
[EventType "swiss"]
[EventCountry "ROU"]
[SourceTitle "playchess.com"]
[Source "ChessBase"]
[SourceQuality "1"]
[TimeControl "40/5400+30:1800+30"]

1. c4 {[%emt 0:00:00]} e6 {[%emt 0:00:00]} 2. d4 {[%emt 0:00:00]} d5 {[%emt 0:00:00]} 3. Nc3 {[%emt 0:00:00]} c5 {[%emt 0:00:00]} 4. cxd5 {[%emt 0:00:12]} exd5 {[%emt 0:00:00]} 5. Nf3 {[%emt 0:00:30]} Nc6 {[%emt 0:00:00]} 6. dxc5 {[%emt 0:02:13]} Nf6 {[%emt 0:00:59]} 7. Bg5 {[%emt 0:03:36]} Be6 {[%emt 0:04:41]} 8. e3 {[%emt 0:02:29]} Bxc5 {[%emt 0:00:30]} 9. Bd3 {[%emt 0:01:32]} O-O {[%emt 0:01:12]} 10. O-O {[%emt 0:00:18]} h6 {[%emt 0:00:18]} 11. Bh4 {[%emt 0:00:20]} Rc8 {[%emt 0:05:25]} 12. Rc1 {[%emt 0:00:19]} Be7 {[%emt 0:00:02]} 13. Bb1 {[%emt 0:02:37]} Qd7 {[%emt 0:01:13]} 14. Nd4 {[%emt 0:04:43]} Nxd4 {[%emt 0:04:43]} 15. exd4 {[%emt 0:00:13]} Rfd8 {[%emt 0:10:52]} 16. Qd3 {[%emt 0:02:19]} g6 {[%emt 0:09:30]} 17. Rfe1 {[%emt 0:13:02]} Ne4 {[%emt 0:10:31]} 18. Bxe7 {[%emt 0:05:01]} Qxe7 {[%emt 0:00:02]} 19. Qe3 {[%emt 0:11:17]} Nxc3 {[%emt 0:02:35]} 20. Rxc3 {[%emt 0:00:20]} Rxc3 {[%emt 0:00:25]} 21. Qxc3 {[%emt 0:00:15]} Qf6 {[%emt 0:01:19]} 22. Qe3 {[%emt 0:02:48]} Kg7 {[%emt 0:04:24]} 23. Rc1 {[%emt 0:03:58]} Rd6 {[%emt 0:00:15]} 24. b3 {[%emt 0:10:32]} Bd7 {[%emt 0:04:47]} 25. Qd2 {[%emt 0:05:38]} Re6 {[%emt 0:03:26]} 26. Rc3 {[%emt 0:02:44]} Qe7 {[%emt 0:09:07]} 27. Re3 {[%emt 0:00:14]} Rxe3 {[%emt 0:01:36]} 28. Qxe3 {[%emt 0:00:08]} Qxe3 {[%emt 0:00:53]} 29. fxe3 {[%emt 0:00:02]} Kf6 {[%emt 0:01:07]} 30. Bd3 {[%emt 0:00:26]} Bf5 {[%emt 0:00:04]} 31. Be2 {[%emt 0:01:22]} Ke6 {[%emt 0:05:02]} 32. Kf2 {[%emt 0:02:32]} Kd6 {[%emt 0:00:01]} 33. Ke1 {[%emt 0:00:24]} Bb1 {[%emt 0:01:04]} 34. a3 {[%emt 0:00:10]} Bc2 {[%emt 0:00:06]} 35. b4 {[%emt 0:00:06]} Be4 {[%emt 0:00:21]} 36. g3 {[%emt 0:00:54]} Ke6 {[%emt 0:03:28]} 37. Kf2 {[%emt 0:01:15]} Kf5 {[%emt 0:00:06]} 38. Bb5 {[%emt 0:00:39]} Ke6 {[%emt 0:03:45]} 39. Be2 {[%emt 0:00:13]} h5 {[%emt 0:00:52]} 40. Bb5 {[%emt 0:00:00]} Kd6 {[%emt 0:00:00]} 41. Ke1 {[%emt 0:01:01]} Ke6 {[%emt 0:06:45]} 42. Kf2 {[%emt 0:00:10]} Bf5 1/2-1/2